fUST/lending_fUST_20240124
["ID","MTS","AMOUNT","RATE_DAILY","PERIOD"]
[312587994,1706035845985,-500.0,0.00041095,31]
[312587995,1706035845995,-500.0,0.00041095,31]
[312587996,1706035846004,-500.0,0.00041095,31]
[312587997,1706035846014,-500.0,0.00041095,31]
[312587999,1706035846023,-500.0,0.00041095,31]
[312588000,1706035846033,-500.0,0.00041095,31]
[312588001,1706035846043,-500.0,0.00041095,31]
[312588002,1706035846052,-500.0,0.00041095,31]
[312588003,1706035846061,-500.0,0.00041095,31]
[312588004,1706035846071,-500.0,0.00041095,31]
[312588006,1706035846080,-500.0,0.00041095,31]
[312588008,1706035846089,-500.0,0.00041095,31]
[312588010,1706035846099,-500.0,0.00041095,31]
[312588012,1706035846108,-500.0,0.00041095,31]
[312588014,1706035846117,-299.96622678,0.00041095,31]
[312588016,1706035846126,-210.95888336,0.00041095,31]
[312588017,1706035846136,-500.0,0.00041095,31]
[312588019,1706035846146,-500.0,0.00041095,31]
[312588021,1706035846156,-500.0,0.00041095,31]
[312588023,1706035846165,-500.0,0.00041095,31]
[312588025,1706035846176,-500.0,0.00041095,31]
[312588027,1706035846186,-470.72977519,0.00041095,31]
[312588029,1706035846195,-500.0,0.00041095,31]
[312588031,1706035846204,-500.0,0.00041095,31]
[312588033,1706035846213,-500.0,0.00041095,31]
[312588034,1706035846223,-973.63,0.00041095,31]
[312588035,1706035846232,-500.0,0.00041095,31]
[312588036,1706035846242,-213.3637942,0.00041095,31]
[312588038,1706035846251,-233.44690638,0.00041095,31]
[312588040,1706035846261,-500.0,0.00041095,31]
[312588042,1706035846270,-511.01,0.00041095,31]
[312588044,1706035846279,-500.0,0.00041095,31]
[312588046,1706035846288,-185.74831423,0.00041095,7]
[312588048,1706035846298,-473.19363087,0.00041095,31]
[312588050,1706035846307,-851.12,0.00041095,31]
[312588052,1706035846317,-500.0,0.00041095,31]
[312588054,1706035846326,-515.50740047,0.00041095,31]
[312588056,1706035846335,-500.0,0.00041095,31]
[312588058,1706035846344,-500.0,0.00041095,31]
[312588060,1706035846354,-464.1836838,0.00041095,31]
[312588062,1706035846363,-1004.32568427,0.00041095,5]
[312588064,1706035846373,-500.0,0.00041095,31]
[312588066,1706035846382,-29031.09,0.00041095,14]
[312588068,1706035846391,-500.0,0.00041095,31]
[312588070,1706035846404,-500.0,0.00041095,31]
[312588072,1706035846414,-503.47676776,0.00041095,31]
[312588074,1706035846423,-500.0,0.00041095,31]
[312588075,1706035846432,-356.12473339,0.00041095,31]
[312588077,1706035846441,-500.0,0.00041095,31]
[312588079,1706035846450,-500.0,0.00041095,31]
[312588081,1706035846459,-168.25549174,0.00041095,31]
[312588083,1706035846468,-500.0,0.00041095,31]
[312588085,1706035846477,-500.0,0.00041095,31]
[312588087,1706035846487,-500.0,0.00041095,31]
[312588089,1706035846496,-500.0,0.00041095,31]
[312588100,1706035846592,-500.0,0.00041095,31]
[312588102,1706035846602,-500.0,0.00041095,31]
[312588104,1706035846611,-728.19,0.00041095,31]
[312588106,1706035846621,-501.91343796,0.00041095,31]
[312588108,1706035846630,-1000.0,0.00041095,2]
[312588110,1706035846639,-500.0,0.00041095,31]
[312588112,1706035846650,-500.0,0.00041095,31]
[312588114,1706035846659,-500.0,0.00041095,31]
[312588116,1706035846668,-1000.0,0.00041095,2]
[312588118,1706035846678,-821.18,0.00041095,31]
[312588120,1706035846687,-512.52391215,0.00041095,31]
[312588122,1706035846697,-500.0,0.00041095,31]
[312588124,1706035846707,-500.0,0.00041095,31]
[312588126,1706035846717,-500.0,0.00041095,31]
[312588128,1706035846726,-500.0,0.00041095,31]
[312588130,1706035846735,-500.0,0.00041095,31]
[312588132,1706035846745,-500.0,0.00041095,31]
[312588133,1706035846754,-500.0,0.00041095,31]
[312588134,1706035846763,-500.0,0.00041095,31]
[312588135,1706035846773,-1169.43,0.00041095,31]
[312588136,1706035846782,-622.66,0.00041095,31]
[312588137,1706035846791,-500.0,0.00041095,31]
[312588138,1706035846803,-500.0,0.00041095,31]
[312588139,1706035846812,-2939.7,0.00041095,31]
[312588140,1706035846821,-500.0,0.00041095,31]
[312588141,1706035846831,-500.0,0.00041095,31]
[312588142,1706035846840,-500.0,0.00041095,31]
[312588143,1706035846850,-500.0,0.00041095,31]
[312588144,1706035846859,-502.22556907,0.00041095,31]
[312588145,1706035846868,-563.42053104,0.00041095,31]
[312588146,1706035846877,-504.46543144,0.00041095,31]
[312588147,1706035846886,-500.0,0.00041095,31]
[312588148,1706035846895,-2336.98,0.00041095,31]
[312588149,1706035846904,-500.0,0.00041095,31]
[312588150,1706035846913,-3931.47,0.00041095,31]
[312588151,1706035846922,-436.85697401,0.00041095,31]
[312588152,1706035846931,-500.0,0.00041095,31]
[312588153,1706035846940,-719.19,0.00041095,31]
[312588154,1706035846950,-500.0,0.00041095,31]
[312588155,1706035846959,-818.08,0.00041095,31]
[312588156,1706035846968,-500.0,0.00041095,31]
[312588157,1706035846977,-580.32,0.00041095,31]
[312588158,1706035846986,-560.483286,0.00041095,31]
[312588159,1706035846995,-500.0,0.00041095,31]
[312588160,1706035847005,-803.43,0.00041095,31]
[312588161,1706035847014,-500.0,0.00041095,31]
[312588162,1706035847023,-651.24,0.00041095,31]
[312588163,1706035847032,-1700.99,0.00041095,31]
[312588164,1706035847042,-500.0,0.00041095,31]
[312588165,1706035847051,-500.0,0.00041095,31]
[312588166,1706035847060,-500.0,0.00041095,31]
[312588167,1706035847070,-2702.03,0.00041095,31]
[312588168,1706035847079,-500.0,0.00041095,31]
[312588169,1706035847089,-500.0,0.00041095,31]
[312588170,1706035847099,-500.0,0.00041095,31]
[312588171,1706035847109,-500.0,0.00041095,31]
[312588172,1706035847118,-500.0,0.00041095,31]
[312588173,1706035847128,-844.17,0.00041095,31]
[312588174,1706035847137,-500.0,0.00041095,31]
[312588175,1706035847148,-1395.11,0.00041095,31]
[312588176,1706035847159,-500.0,0.00041095,31]
[312588177,1706035847168,-500.0,0.00041095,31]
[312588178,1706035847177,-500.0,0.00041095,31]
[312588179,1706035847187,-500.0,0.00041095,31]
[312588180,1706035847196,-500.0,0.00041095,31]
[312588181,1706035847206,-500.0,0.00041095,31]
[312588182,1706035847215,-501.86844629,0.00041095,31]
[312588183,1706035847224,-500.0,0.00041095,31]
[312588184,1706035847233,-500.0,0.00041095,31]
[312588185,1706035847242,-500.0,0.00041095,31]
[312588186,1706035847251,-913.38,0.00041095,31]
[312588187,1706035847260,-500.0,0.00041095,31]
[312588188,1706035847270,-603.25,0.00041095,31]
[312588189,1706035847279,-500.0,0.00041095,31]
[312588190,1706035847288,-302.21255943,0.00041095,31]
[312588191,1706035847297,-500.0,0.00041095,31]
[312588192,1706035847306,-500.0,0.00041095,31]
[312588193,1706035847316,-500.0,0.00041095,31]
[312588194,1706035847324,-500.0,0.00041095,31]
[312588195,1706035847333,-500.0,0.00041095,31]
[312588196,1706035847342,-560.17775713,0.00041095,31]
[312588197,1706035847352,-1498.58,0.00041095,31]
[312588198,1706035847361,-500.0,0.00041095,31]
[312588199,1706035847370,-500.0,0.00041095,31]
[312588200,1706035847379,-500.0,0.00041095,31]
[312588201,1706035847388,-500.0,0.00041095,31]
[312588202,1706035847401,-500.0,0.00041095,31]
[312588203,1706035847410,-1054.4,0.00041095,31]
[312588204,1706035847419,-465.43776687,0.00041095,31]
[312588205,1706035847428,-500.0,0.00041095,31]
[312588206,1706035847437,-500.0,0.00041095,31]
[312588207,1706035847446,-506.24950655,0.00041095,31]
[312588208,1706035847455,-286.32535988,0.00041095,14]
[312588209,1706035847465,-500.0,0.00041095,31]
[312588210,1706035847473,-500.0,0.00041095,31]
[312588211,1706035847483,-500.0,0.00041095,31]
[312588212,1706035847492,-789.47,0.00041095,31]
[312588213,1706035847501,-500.0,0.00041095,31]
[312588214,1706035847511,-529.09,0.00041095,20]
[312588215,1706035847522,-691.37,0.00041095,31]
[312588216,1706035847531,-500.0,0.00041095,31]
[312588217,1706035847539,-915.17,0.00041095,31]
[312588218,1706035847549,-1382.62,0.00041095,31]
[312588219,1706035847558,-220.0,0.00041095,2]
[312588220,1706035847568,-1247.1,0.00041095,31]
[312588221,1706035847577,-500.0,0.00041095,31]
[312588222,1706035847586,-658.67,0.00041095,31]
[312588223,1706035847596,-500.0,0.00041095,2]
[312588224,1706035847606,-500.0,0.00041095,31]
[312588225,1706035847615,-857.44,0.00041095,31]
[312588226,1706035847624,-500.0,0.00041095,31]
[312588227,1706035847633,-156.24773545,0.00041095,31]
[312588228,1706035847643,-500.0,0.00041095,31]
[312588229,1706035847658,-500.0,0.00041095,31]
[312588230,1706035847668,-1449.02,0.00041095,31]
[312588231,1706035847677,-2103.94,0.00041095,31]
[312588232,1706035847687,-214.9187677,0.00041095,31]
[312588233,1706035847696,-500.0,0.00041095,31]
[312588234,1706035847706,-500.0,0.00041095,31]
[312588235,1706035847715,-976.89,0.00041095,31]
[312588236,1706035847725,-500.0,0.00041095,31]
[312588237,1706035847734,-10949.99,0.00041095,31]
[312588238,1706035847743,-500.0,0.00041095,31]
[312588239,1706035847753,-1210.59,0.00041095,31]
[312588240,1706035847762,-511.26,0.00041095,7]
[312588241,1706035847771,-500.0,0.00041095,31]
[312588242,1706035847781,-195.29608285,0.00041095,31]
[312588243,1706035847790,-505.26817367,0.00041095,31]
[312588244,1706035847800,-200.0,0.00041095,31]
[312588245,1706035847810,-500.0,0.00041095,31]
[312588246,1706035847820,-991.89,0.00041095,31]
[312588247,1706035847829,-500.0,0.00041095,31]
[312588248,1706035847838,-1400.94,0.00041095,31]
[312588249,1706035847847,-500.0,0.00041095,31]
[312588250,1706035847856,-500.0,0.00041095,31]
[312588251,1706035847866,-500.0,0.00041095,31]
[312588252,1706035847875,-500.0,0.00041095,31]
[312588253,1706035847884,-4338.54,0.00041095,31]
[312588254,1706035847893,-246.26787996,0.00041095,31]
[312588255,1706035847905,-610.31,0.00041095,31]
[312588256,1706035847915,-822.82,0.00041095,31]
[312588257,1706035847923,-500.0,0.00041095,31]
[312588258,1706035847933,-622.43,0.00041095,31]
[312588259,1706035847942,-500.0,0.00041095,31]
[312588260,1706035847951,-2437.75,0.00041095,31]
[312588261,1706035847961,-1000.0,0.00041095,2]
[312588262,1706035847970,-849.75,0.00041095,31]
[312588263,1706035847979,-502.66935976,0.00041095,31]
[312588264,1706035847988,-518.68,0.00041095,31]
[312588265,1706035847997,-993.68,0.00041095,31]
[312588266,1706035848006,-500.0,0.00041095,31]
[312588267,1706035848015,-850.9,0.00041095,31]
[312588268,1706035848024,-500.0,0.00041095,31]
[312588269,1706035848033,-807.21,0.00041095,31]
[312588270,1706035848042,-603.68571456,0.00041095,31]
[312588271,1706035848051,-547.02,0.00041095,31]
[312588272,1706035848061,-500.0,0.00041095,31]
[312588273,1706035848070,-467.05896833,0.00041095,31]
[312588274,1706035848079,-500.0,0.00041095,31]
[312588275,1706035848088,-500.0,0.00041095,31]
[312588276,1706035848097,-500.0,0.00041095,31]
[312588277,1706035848106,-500.0,0.00041095,31]
[312588278,1706035848115,-500.0,0.00041095,31]
[312588279,1706035848124,-500.0,0.00041095,31]
[312588280,1706035848133,-500.0,0.00041095,31]
[312588281,1706035848142,-500.0,0.00041095,31]
[312588282,1706035848154,-500.0,0.00041095,31]
[312588283,1706035848163,-503.61683679,0.00041095,31]
[312588284,1706035848172,-5101.15,0.00041095,31]
[312588285,1706035848181,-500.0,0.00041095,31]
[312588286,1706035848190,-502.99,0.00041095,31]
[312588287,1706035848199,-502.61238312,0.00041095,31]
[312588288,1706035848208,-500.0,0.00041095,31]
[312588289,1706035848217,-500.0,0.00041095,31]
[312588290,1706035848226,-500.0,0.00041095,31]
[312588291,1706035848235,-1671.41,0.00041095,31]
[312588292,1706035848244,-430.71607449,0.00041095,31]
[312588293,1706035848253,-357.27707893,0.00041095,31]
[312588294,1706035848262,-502.33269681,0.00041095,31]
[312588295,1706035848271,-500.0,0.00041095,31]
[312588296,1706035848280,-500.0,0.00041095,31]
[312588297,1706035848289,-500.0,0.00041095,31]
[312588298,1706035848298,-500.0,0.00041095,31]
[312588299,1706035848307,-538.91,0.00041095,31]
[312588300,1706035848317,-531.88707939,0.00041095,31]
[312588301,1706035848326,-500.0,0.00041095,31]
[312588302,1706035848335,-500.0,0.00041095,31]
[312588303,1706035848344,-500.0,0.00041095,31]
[312588304,1706035848353,-500.0,0.00041095,31]
[312588305,1706035848362,-500.0,0.00041095,31]
[312588306,1706035848371,-500.0,0.00041095,31]
[312588307,1706035848380,-500.0,0.00041095,31]
[312588308,1706035848389,-500.0,0.00041095,31]
[312588309,1706035848399,-500.0,0.00041095,31]
[312588310,1706035848408,-500.0,0.00041095,31]
[312588311,1706035848508,-510.26342135,0.00041095,31]
[312588312,1706035848521,-500.0,0.00041095,31]
[312588313,1706035848532,-500.0,0.00041095,31]
[312588314,1706035848543,-958.84,0.00041095,31]
[312588315,1706035848553,-1014.98,0.00041095,31]
[312588316,1706035848563,-500.0,0.00041095,31]
[312588317,1706035848575,-424.21702039,0.00041095,31]
[312588318,1706035848584,-500.0,0.00041095,31]
[312588319,1706035848594,-500.0,0.00041095,31]
[312588320,1706035848604,-500.0,0.00041095,31]
[312588321,1706035848614,-500.0,0.00041095,31]
[312588322,1706035848623,-500.0,0.00041095,2]
[312588323,1706035848632,-500.0,0.00041095,31]
[312588324,1706035848642,-500.0,0.00041095,31]
[312588325,1706035848652,-500.0,0.00041095,31]
[312588326,1706035848661,-500.0,0.00041095,31]
[312588327,1706035848671,-500.0,0.00041095,31]
[312588328,1706035848680,-500.0,0.00041095,31]
[312588329,1706035848690,-247.302861,0.00041095,2]
[312588330,1706035848699,-247.302861,0.00041095,2]
[312588331,1706035848709,-247.302861,0.00041095,2]
[312588332,1706035848718,-247.302861,0.00041095,2]
[312588333,1706035848727,-247.302861,0.00041095,2]
[312588334,1706035848736,-247.302861,0.00041095,2]
[312588335,1706035848746,-247.302861,0.00041095,2]
[312588336,1706035848756,-247.302861,0.00041095,2]
[312588337,1706035848766,-247.302861,0.00041095,2]
[312588338,1706035848775,-247.302861,0.00041095,2]
[312588339,1706035848785,-151.0,0.00041095,2]
[312588340,1706035848796,-151.0,0.00041095,2]
[312588341,1706035848806,-152.725525,0.00041095,2]
[312588342,1706035848815,-152.299118,0.00041095,2]
[312588343,1706035848824,-152.299118,0.00041095,2]
[312588344,1706035848834,-152.299118,0.00041095,2]
[312588345,1706035848843,-152.299118,0.00041095,2]
[312588346,1706035848852,-152.299118,0.00041095,2]
[312588347,1706035848861,-152.299118,0.00041095,2]
[312588348,1706035848871,-152.299118,0.00041095,2]
[312588349,1706035848880,-152.299118,0.00041095,2]
[312588350,1706035848889,-152.299118,0.00041095,2]
[312588351,1706035848900,-152.299118,0.00041095,2]
[312588352,1706035848909,-152.299118,0.00041095,2]
[312588353,1706035848918,-152.299118,0.00041095,2]
[312588354,1706035848928,-151.0,0.00041095,2]
[312588355,1706035848937,-151.0,0.00041095,2]
[312588356,1706035848947,-151.0,0.00041095,2]
[312588357,1706035848956,-151.0,0.00041095,2]
[312588358,1706035848965,-151.0,0.00041095,2]
[312588359,1706035848975,-151.0,0.00041095,2]
[312588360,1706035848984,-151.0,0.00041095,2]
[312588361,1706035848994,-151.0,0.00041095,2]
[312588362,1706035849003,-151.0,0.00041095,2]
[312588363,1706035849013,-151.0,0.00041095,2]
[312588364,1706035849022,-151.0,0.00041095,2]
[312588365,1706035849031,-151.0,0.00041095,2]
[312588366,1706035849040,-156.037478,0.00041095,2]
[312588367,1706035849050,-265.743168,0.00041095,2]
[312588368,1706035849060,-1543.313577,0.00041095,2]
[312588369,1706035849068,-1543.313577,0.00041095,2]
[312588370,1706035849077,-1543.313577,0.00041095,2]
[312588371,1706035849086,-1543.313577,0.00041095,2]
[312588372,1706035849094,-1543.313577,0.00041095,2]
[312588373,1706035849103,-1543.313577,0.00041095,2]
[312588374,1706035849112,-1543.313577,0.00041095,2]
[312588375,1706035849121,-1543.313577,0.00041095,2]
[312588376,1706035849129,-1543.313577,0.00041095,2]
[312588377,1706035849138,-1543.313577,0.00041095,2]
[312588378,1706035849148,-1543.313577,0.00041095,2]
[312588379,1706035849157,-1543.313577,0.00041095,2]
[312588380,1706035849166,-1507.071105,0.00041095,2]
[312588381,1706035849175,-1507.071105,0.00041095,2]
[312588382,1706035849184,-1507.071105,0.00041095,2]
[312588383,1706035849193,-1507.071105,0.00041095,2]
[312588384,1706035849202,-1507.071105,0.00041095,2]
[312588385,1706035849210,-1507.071105,0.00041095,2]
[312588386,1706035849220,-1507.071105,0.00041095,2]
[312588387,1706035849230,-1507.071105,0.00041095,2]
[312588388,1706035849239,-1507.071105,0.00041095,2]
[312588389,1706035849248,-1507.071105,0.00041095,2]
[312588390,1706035849257,-1507.071105,0.00041095,2]
[312588391,1706035849265,-1507.071105,0.00041095,2]
[312588392,1706035849274,-1507.071105,0.00041095,2]
[312588393,1706035849283,-1507.071105,0.00041095,2]
[312588394,1706035849292,-643.81835,0.00041095,2]
[312588395,1706035849301,-643.81835,0.00041095,2]
[312588396,1706035849310,-643.81835,0.00041095,2]
[312588397,1706035849320,-643.81835,0.00041095,2]
[312588398,1706035849329,-643.81835,0.00041095,2]
[312588399,1706035849339,-643.81835,0.00041095,2]
[312588400,1706035849348,-643.81835,0.00041095,2]
[312588401,1706035849358,-643.81835,0.00041095,2]
[312588402,1706035849367,-643.81835,0.00041095,2]
[312588403,1706035849376,-643.81835,0.00041095,2]
[312588404,1706035849386,-643.81835,0.00041095,2]
[312588405,1706035849395,-643.81835,0.00041095,2]
[312588406,1706035849407,-643.81835,0.00041095,2]
[312588407,1706035849418,-643.81835,0.00041095,2]
[312588408,1706035849427,-643.81835,0.00041095,2]
[312588409,1706035849437,-643.81835,0.00041095,2]
[312588410,1706035849446,-643.81835,0.00041095,2]
[312588411,1706035849456,-643.81835,0.00041095,2]
[312588412,1706035849466,-176.5291802,0.00041096,2]
[312588413,1706035849476,-158.5370369,0.00041188,30]
[312588414,1706035849487,-500.0,0.00041268,6]
[312588415,1706035849497,-4127.98064837,0.00041367,4]
[312588416,1706035849507,-151.0,0.00041367,7]
[312588417,1706035849517,-151.0,0.00041367,7]
[312588418,1706035849529,-152.299118,0.00041368,7]
[312588419,1706035849538,-152.299118,0.00041368,7]
[312588420,1706035849548,-152.299118,0.00041368,7]
[312588421,1706035849557,-152.299118,0.00041368,7]
[312588422,1706035849566,-151.0,0.00041368,7]
[312588423,1706035849575,-151.0,0.00041368,7]
[312588424,1706035849585,-1543.313577,0.00041368,7]
[312588425,1706035849594,-1543.313577,0.00041368,7]
[312588426,1706035849603,-1543.313577,0.00041368,7]
[312588427,1706035849612,-1543.313577,0.00041368,7]
[312588428,1706035849621,-1507.071105,0.00041368,7]
[312588429,1706035849630,-1507.071105,0.00041368,7]
[312588430,1706035849640,-1507.071105,0.00041368,7]
[312588431,1706035849652,-1507.071105,0.00041368,7]
[312588432,1706035849662,-643.81835,0.00041368,7]
[312588433,1706035849671,-643.81836,0.00041368,7]
[312588434,1706035849680,-161.94694653,0.00041368,30]
[312588435,1706035849689,-160.0,0.00041368,30]
[312588436,1706035849700,-365.26011049,0.00041368,30]
[312588437,1706035849710,-203.57851541,0.00041368,30]
[312588438,1706035849719,-407.17228242,0.00041368,30]
[312588439,1706035849729,-500.0,0.00041368,30]
[312588440,1706035849739,-500.0,0.00041368,30]
[312588441,1706035849749,-500.0,0.00041368,30]
[312588442,1706035849759,-500.0,0.00041368,30]
[312588443,1706035849770,-500.0,0.00041368,30]
[312588444,1706035849780,-500.0,0.00041368,30]
[312588445,1706035849790,-500.0,0.00041368,30]
[312588446,1706035849800,-500.0,0.00041368,30]
[312588447,1706035849810,-483.17646267,0.00041368,30]
[312588448,1706035849820,-500.0,0.00041368,30]
[312588449,1706035849830,-500.0,0.00041368,30]
[312588450,1706035849840,-500.0,0.00041368,30]
[312588451,1706035849850,-500.0,0.00041368,30]
[312588452,1706035849860,-500.0,0.00041368,30]
[312588453,1706035849871,-500.0,0.00041368,30]
[312588454,1706035849881,-500.0,0.00041368,30]
[312588455,1706035849891,-198.66717382,0.00041368,30]
[312588456,1706035849902,-500.0,0.00041368,30]
[312588457,1706035849911,-500.0,0.00041368,30]
[312588458,1706035849921,-500.0,0.00041368,30]
[312588459,1706035849930,-500.0,0.00041368,30]
[312588460,1706035849939,-500.0,0.00041368,30]
[312588461,1706035849949,-500.0,0.00041368,30]
[312588462,1706035849958,-500.0,0.00041368,30]
[312588463,1706035849967,-500.0,0.00041368,30]
[312588464,1706035849976,-500.0,0.00041368,30]
[312588465,1706035849985,-191.63997039,0.00041368,30]
[312588466,1706035849995,-500.0,0.00041368,30]
[312588467,1706035850004,-484.98524622,0.00041368,30]
[312588468,1706035850013,-500.0,0.00041368,30]
[312588469,1706035850023,-500.0,0.00041368,30]
[312588470,1706035850031,-500.0,0.00041368,30]
[312588471,1706035850040,-500.0,0.00041368,30]
[312588472,1706035850049,-500.0,0.00041368,30]
[312588473,1706035850059,-500.0,0.00041368,30]
[312588474,1706035850068,-500.0,0.00041368,30]
[312588475,1706035850077,-500.0,0.00041368,30]
[312588476,1706035850086,-500.0,0.00041368,30]
[312588477,1706035850096,-500.0,0.00041368,30]
[312588478,1706035850105,-500.0,0.00041368,30]
[312588479,1706035850114,-500.0,0.00041368,30]
[312588480,1706035850123,-500.0,0.00041368,30]
[312588481,1706035850132,-500.0,0.00041368,30]
[312588482,1706035850142,-500.0,0.00041368,30]
[312588483,1706035850156,-500.0,0.00041368,30]
[312588484,1706035850166,-500.0,0.00041368,30]
[312588485,1706035850175,-500.0,0.00041368,30]
[312588486,1706035850185,-500.0,0.00041368,30]
[312588487,1706035850194,-500.0,0.00041368,30]
[312588488,1706035850273,-500.0,0.00041368,30]
[312588489,1706035850295,-500.0,0.00041368,30]
[312588490,1706035850304,-500.0,0.00041368,30]
[312588491,1706035850314,-500.0,0.00041368,30]
[312588492,1706035850323,-500.0,0.00041368,30]
[312588493,1706035850332,-500.0,0.00041368,30]
[312588494,1706035850342,-500.0,0.00041368,30]
[312588495,1706035850352,-500.0,0.00041368,30]
[312588496,1706035850361,-500.0,0.00041368,30]
[312588497,1706035850370,-500.0,0.00041368,30]
[312588498,1706035850379,-500.0,0.00041368,30]
[312588499,1706035850388,-500.0,0.00041368,30]
[312588500,1706035850399,-500.0,0.00041368,30]
[312588501,1706035850408,-500.0,0.00041368,30]
[312588502,1706035850417,-489.55817708,0.00041368,30]
[312588503,1706035850428,-500.0,0.00041368,30]
[312588504,1706035850437,-500.0,0.00041368,30]
[312588505,1706035850446,-500.0,0.00041368,30]
[312588506,1706035850455,-500.0,0.00041368,30]
[312588507,1706035850464,-500.0,0.00041368,30]
[312588508,1706035850473,-500.0,0.00041368,30]
[312588509,1706035850483,-500.0,0.00041368,30]
[312588510,1706035850492,-500.0,0.00041368,30]
[312588511,1706035850501,-500.0,0.00041368,30]
[312588512,1706035850513,-500.0,0.00041368,30]
[312588513,1706035850522,-500.0,0.00041368,30]
[312588514,1706035850531,-500.0,0.00041368,30]
[312588515,1706035850540,-500.0,0.00041368,30]
[312588516,1706035850550,-500.0,0.00041368,30]
[312588517,1706035850559,-500.0,0.00041368,30]
[312588518,1706035850568,-788.01,0.00041368,31]
[312588519,1706035850579,-788.01,0.00041368,31]
[312588520,1706035850588,-788.01,0.00041368,31]
[312588521,1706035850598,-788.01,0.00041368,31]
[312588522,1706035850611,-788.01,0.00041368,31]
[312588523,1706035850621,-788.01,0.00041368,31]
[312588524,1706035850632,-788.01,0.00041368,31]
[312588525,1706035850642,-788.22431436,0.00041368,31]
[312588526,1706035850655,-500.0,0.00041368,31]
[312588527,1706035850665,-272.04811987,0.00041368,31]
[312588528,1706035850676,-500.0,0.00041369,31]
[312588529,1706035850687,-500.0,0.00041369,31]
[312588530,1706035850697,-205.7602121,0.00041369,31]
[312588531,1706035850709,-500.0,0.00041369,31]
[312588532,1706035850719,-500.0,0.00041369,31]
[312588533,1706035850728,-500.0,0.00041369,31]
[312588534,1706035850738,-512.7064361,0.00041369,31]
[312588535,1706035850748,-500.0,0.00041369,31]
[312588536,1706035850757,-781.12,0.00041369,31]
[312588537,1706035850767,-500.0,0.00041369,31]
[312588538,1706035850777,-501.55466975,0.00041369,31]
[312588539,1706035850786,-500.0,0.00041369,7]
[312588540,1706035850796,-500.0,0.00041369,31]
[312588541,1706035850805,-500.0,0.00041369,31]
[312588542,1706035850815,-500.0,0.00041369,31]
[312588543,1706035850825,-500.0,0.00041369,31]
[312588544,1706035850834,-500.0,0.00041369,2]
[312588545,1706035850844,-500.0,0.00041369,31]
[312588546,1706035850854,-504.09079412,0.00041369,31]
[312588547,1706035850863,-500.0,0.00041369,31]
[312588548,1706035850874,-500.0,0.00041369,31]
[312588549,1706035850884,-500.0,0.00041369,7]
[312588550,1706035850895,-609.11890778,0.00041369,31]
[312588551,1706035850906,-500.0,0.00041369,31]
[312588552,1706035850916,-500.0,0.00041369,31]
[312588553,1706035850926,-1265.68,0.00041369,31]
[312588554,1706035850936,-500.0,0.00041369,31]
[312588555,1706035850945,-352.16277512,0.00041369,31]
[312588556,1706035850955,-500.0,0.00041369,31]
[312588557,1706035850965,-580.06,0.00041369,31]
[312588558,1706035850974,-500.0,0.00041369,31]
[312588559,1706035850984,-500.0,0.00041369,31]
[312588560,1706035850993,-583.15360398,0.00041369,31]